[Event "*** Titled Tuesday Blitz"]
[Site "Chess.com"]
[Date "2020.04.21"]
[Round "6"]
[White "Jeffinho023"]
[Black "cassoulet"]
[Result "0-1"]
[WhiteElo "2485"]
[BlackElo "2646"]
[TimeControl "180+1"]
[EndTime "11:05:50 PDT"]
[Termination "cassoulet won by resignation"]

1. d4 {[%clk 0:03:00.9]} 1... d5 {[%clk 0:02:59.5]} 2. Nf3 {[%clk 0:03:00.6]}
2... Nf6 {[%clk 0:02:59.5]} 3. Bf4 {[%clk 0:03:00.4]} 3... g6 {[%clk 0:02:59.8]}
4. e3 {[%clk 0:03:00.3]} 4... Bg7 {[%clk 0:03:00.3]} 5. h3 {[%clk 0:03:00.6]}
5... O-O {[%clk 0:03:00.9]} 6. Nbd2 {[%clk 0:03:00.9]} 6... c5 {[%clk
0:03:01.4]} 7. c3 {[%clk 0:03:00.6]} 7... Nc6 {[%clk 0:03:01.4]} 8. Be2 {[%clk
0:03:00.4]} 8... Nd7 {[%clk 0:03:01.6]} 9. O-O {[%clk 0:02:49.6]} 9... e5 {[%clk
0:03:01.1]} 10. dxe5 {[%clk 0:02:48.4]} 10... Ndxe5 {[%clk 0:03:02]} 11. Nxe5
{[%clk 0:02:48.6]} 11... Nxe5 {[%clk 0:03:02.9]} 12. Nf3 {[%clk 0:02:49]} 12...
Nc6 {[%clk 0:03:01.5]} 13. Qb3 {[%clk 0:02:43]} 13... b6 {[%clk 0:03:00.2]} 14.
Rfd1 {[%clk 0:02:41.7]} 14... Be6 {[%clk 0:03:00.1]} 15. Qa4 {[%clk 0:02:38.6]}
15... Ne7 {[%clk 0:02:36.8]} 16. Be5 {[%clk 0:02:26.7]} 16... f6 {[%clk
0:02:33.4]} 17. Bh2 {[%clk 0:02:24.4]} 17... Bd7 {[%clk 0:02:26.3]} 18. Qb3
{[%clk 0:02:23.4]} 18... Qe8 {[%clk 0:02:21.5]} 19. e4 {[%clk 0:02:17.8]} 19...
Ba4 {[%clk 0:02:21.4]} 20. Qa3 {[%clk 0:02:07.3]} 20... Bxd1 {[%clk 0:02:20.5]}
21. Bxd1 {[%clk 0:01:55.9]} 21... dxe4 {[%clk 0:02:20.4]} 22. Nd2 {[%clk
0:01:56.2]} 22... Nf5 {[%clk 0:02:12.3]} 23. Bb3+ {[%clk 0:01:48.5]} 23... Kh8
{[%clk 0:02:12.4]} 24. Bd5 {[%clk 0:01:48.2]} 24... e3 {[%clk 0:02:07.3]} 25.
Bxa8 {[%clk 0:01:05.8]} 25... exd2 {[%clk 0:02:05.8]} 0-1

[Event "*** Titled Tuesday Blitz"]
[Site "Chess.com"]
[Date "2020.04.21"]
[Round "6"]
[White "vpsetter"]
[Black "MasterKroket"]
[Result "1-0"]
[WhiteElo "2601"]
[BlackElo "2426"]
[TimeControl "180+1"]
[EndTime "11:06:17 PDT"]
[Termination "vpsetter won by resignation"]

1. e4 {[%clk 0:02:55]} 1... c5 {[%clk 0:02:59.9]} 2. Nf3 {[%clk 0:02:54.1]} 2...
e6 {[%clk 0:03:00.5]} 3. d4 {[%clk 0:02:54.8]} 3... cxd4 {[%clk 0:03:01.4]} 4.
Nxd4 {[%clk 0:02:55.7]} 4... Nc6 {[%clk 0:03:02.2]} 5. Nc3 {[%clk 0:02:56.1]}
5... Qc7 {[%clk 0:03:02.8]} 6. Be3 {[%clk 0:02:56.4]} 6... a6 {[%clk 0:03:03.1]}
7. Be2 {[%clk 0:02:55.5]} 7... Nf6 {[%clk 0:03:03.7]} 8. O-O {[%clk 0:02:55.5]}
8... Bb4 {[%clk 0:03:04.4]} 9. Na4 {[%clk 0:02:53.4]} 9... O-O {[%clk
0:03:04.6]} 10. c4 {[%clk 0:02:48.8]} 10... Bd6 {[%clk 0:03:02.5]} 11. f4 {[%clk
0:02:39.3]} 11... Nxe4 {[%clk 0:02:59.8]} 12. Bf3 {[%clk 0:02:24.9]} 12... f5
{[%clk 0:02:59.2]} 13. Rc1 {[%clk 0:02:06.5]} 13... Rb8 {[%clk 0:02:47]} 14. g3
{[%clk 0:01:59.6]} 14... Be7 {[%clk 0:02:38.9]} 15. c5 {[%clk 0:01:46.8]} 15...
Bf6 {[%clk 0:02:36.3]} 16. Nb6 {[%clk 0:01:43]} 16... Nxd4 {[%clk 0:02:02.9]}
17. Bxd4 {[%clk 0:01:42]} 17... e5 {[%clk 0:02:01]} 18. Nd5 {[%clk 0:01:36.2]}
18... Qc6 {[%clk 0:01:57.7]} 19. Bxe5 {[%clk 0:01:32.5]} 19... Qe6 {[%clk
0:01:16.2]} 20. Bxb8 {[%clk 0:01:26.6]} 20... Bxb2 {[%clk 0:01:16.3]} 21. Rc2
{[%clk 0:01:25.9]} 21... Ba3 {[%clk 0:01:15.7]} 22. Bxe4 {[%clk 0:01:22.4]}
22... fxe4 {[%clk 0:01:11.1]} 23. Bd6 {[%clk 0:01:20.4]} 23... Rf5 {[%clk
0:01:10.7]} 24. Ne7+ {[%clk 0:01:19.9]} 1-0

[Event "*** Titled Tuesday Blitz"]
[Site "Chess.com"]
[Date "2020.04.21"]
[Round "6"]
[White "ntmh281"]
[Black "BlackWidow515"]
[Result "0-1"]
[WhiteElo "2256"]
[BlackElo "2096"]
[TimeControl "180+1"]
[EndTime "11:06:20 PDT"]
[Termination "BlackWidow515 won by checkmate"]

1. d4 {[%clk 0:03:00.9]} 1... d5 {[%clk 0:02:59.9]} 2. Bf4 {[%clk 0:03:00.8]}
2... Nf6 {[%clk 0:03:00.1]} 3. e3 {[%clk 0:03:01.7]} 3... e6 {[%clk 0:03:00.1]}
4. Nf3 {[%clk 0:03:02.2]} 4... Bd6 {[%clk 0:03:00.7]} 5. Bg3 {[%clk 0:03:02.6]}
5... O-O {[%clk 0:03:00.9]} 6. Nbd2 {[%clk 0:03:02.1]} 6... b6 {[%clk
0:03:01.5]} 7. Bd3 {[%clk 0:03:02.4]} 7... Bb7 {[%clk 0:03:02]} 8. Qe2 {[%clk
0:03:00.9]} 8... Nbd7 {[%clk 0:03:01.7]} 9. c3 {[%clk 0:02:58.5]} 9... Ne4
{[%clk 0:03:00.9]} 10. Ne5 {[%clk 0:02:40.1]} 10... Bxe5 {[%clk 0:02:54.2]} 11.
Bxe5 {[%clk 0:02:36.9]} 11... Nxe5 {[%clk 0:02:53.6]} 12. dxe5 {[%clk
0:02:37.8]} 12... c5 {[%clk 0:02:37.3]} 13. O-O-O {[%clk 0:02:25.1]} 13... Qc7
{[%clk 0:02:35.4]} 14. f4 {[%clk 0:02:16.3]} 14... b5 {[%clk 0:02:21.8]} 15.
Nxe4 {[%clk 0:02:10.6]} 15... dxe4 {[%clk 0:02:18.7]} 16. Bxb5 {[%clk
0:02:10.4]} 16... Qa5 {[%clk 0:02:18.7]} 17. Kb1 {[%clk 0:02:09.3]} 17... Rab8
{[%clk 0:02:14.5]} 18. Bc4 {[%clk 0:02:02.2]} 18... Bc6 {[%clk 0:02:05.2]} 19.
Rd6 {[%clk 0:01:48.9]} 19... Rb6 {[%clk 0:02:01.3]} 20. Qc2 {[%clk 0:01:37.2]}
20... Rfb8 {[%clk 0:01:56.5]} 21. b3 {[%clk 0:01:37.2]} 21... Bb5 {[%clk
0:01:33.7]} 22. Bxb5 {[%clk 0:01:29.1]} 22... Rxb5 {[%clk 0:01:29.7]} 23. Rhd1
{[%clk 0:01:28]} 23... h6 {[%clk 0:01:19.3]} 24. Qxe4 {[%clk 0:01:20.6]} 24...
Rxb3+ {[%clk 0:01:14.3]} 25. axb3 {[%clk 0:01:21.5]} 25... Rxb3+ {[%clk
0:01:09.9]} 26. Kc2 {[%clk 0:01:21.9]} 26... Qxc3# {[%clk 0:01:09]} 0-1

[Event "*** Titled Tuesday Blitz"]
[Site "Chess.com"]
[Date "2020.04.21"]
[Round "6"]
[White "Anton_Demchenko"]
[Black "RaphaeI"]
[Result "1-0"]
[WhiteElo "2849"]
[BlackElo "2660"]
[TimeControl "180+1"]
[EndTime "11:06:21 PDT"]
[Termination "Anton_Demchenko won by resignation"]

1. d4 {[%clk 0:03:00.9]} 1... Nf6 {[%clk 0:02:59.8]} 2. Nf3 {[%clk 0:03:00.7]}
2... d5 {[%clk 0:02:59.3]} 3. Bf4 {[%clk 0:03:00.8]} 3... c5 {[%clk 0:02:59.1]}
4. e3 {[%clk 0:03:01.2]} 4... Nc6 {[%clk 0:02:59]} 5. Nbd2 {[%clk 0:03:01.3]}
5... cxd4 {[%clk 0:02:59.3]} 6. exd4 {[%clk 0:03:01.6]} 6... Bf5 {[%clk
0:02:56.2]} 7. Bb5 {[%clk 0:03:00.6]} 7... Qb6 {[%clk 0:02:49.6]} 8. c4 {[%clk
0:02:58.5]} 8... dxc4 {[%clk 0:02:49.3]} 9. a4 {[%clk 0:02:58.2]} 9... a6 {[%clk
0:02:41.9]} 10. Nxc4 {[%clk 0:02:46.6]} 10... Qd8 {[%clk 0:02:26.4]} 11. Bxc6+
{[%clk 0:02:43.7]} 11... bxc6 {[%clk 0:02:27.3]} 12. a5 {[%clk 0:02:42.4]} 12...
e6 {[%clk 0:02:23.7]} 13. O-O {[%clk 0:02:40.2]} 13... Nd5 {[%clk 0:02:10.3]}
14. Bg3 {[%clk 0:02:38.5]} 14... Rc8 {[%clk 0:01:28]} 15. Qb3 {[%clk 0:02:32.9]}
15... Be7 {[%clk 0:01:18.3]} 16. Nb6 {[%clk 0:02:25]} 16... O-O {[%clk
0:01:07.7]} 17. Rfc1 {[%clk 0:02:12]} 17... Bf6 {[%clk 0:01:02.4]} 18. Nxc8
{[%clk 0:01:58.1]} 18... Qxc8 {[%clk 0:01:03.3]} 19. Qc4 {[%clk 0:01:58.3]}
19... Ne7 {[%clk 0:00:44.7]} 20. Bd6 {[%clk 0:01:57.1]} 20... Be4 {[%clk
0:00:44.9]} 21. Ne5 {[%clk 0:01:55]} 21... Bd5 {[%clk 0:00:43.1]} 22. Qc5 {[%clk
0:01:36.5]} 22... Qb7 {[%clk 0:00:42.8]} 23. Qb6 {[%clk 0:01:33.5]} 1-0

[Event "*** Titled Tuesday Blitz"]
[Site "Chess.com"]
[Date "2020.04.21"]
[Round "6"]
[White "andy_rekt"]
[Black "Sanyura"]
[Result "0-1"]
[WhiteElo "2257"]
[BlackElo "2429"]
[TimeControl "180+1"]
[EndTime "11:06:29 PDT"]
[Termination "Sanyura won by checkmate"]

1. d4 {[%clk 0:03:00.9]} 1... Nf6 {[%clk 0:02:59.7]} 2. c4 {[%clk 0:03:01.4]}
2... c5 {[%clk 0:02:59.9]} 3. d5 {[%clk 0:03:01]} 3... b5 {[%clk 0:03:00.2]} 4.
cxb5 {[%clk 0:03:00.4]} 4... a6 {[%clk 0:03:00.7]} 5. bxa6 {[%clk 0:03:00.7]}
5... e6 {[%clk 0:03:01.1]} 6. Nc3 {[%clk 0:03:01]} 6... exd5 {[%clk 0:03:01.1]}
7. Nxd5 {[%clk 0:03:00.8]} 7... Be7 {[%clk 0:03:01.6]} 8. Nxe7 {[%clk
0:02:57.3]} 8... Qxe7 {[%clk 0:03:02.5]} 9. Nf3 {[%clk 0:02:54.6]} 9... O-O
{[%clk 0:03:02.6]} 10. e3 {[%clk 0:02:50.8]} 10... Rxa6 {[%clk 0:02:59.4]} 11.
Be2 {[%clk 0:02:42.1]} 11... Ne4 {[%clk 0:02:57.6]} 12. O-O {[%clk 0:02:41.1]}
12... Rg6 {[%clk 0:02:57.1]} 13. Qd5 {[%clk 0:02:31.8]} 13... Nc6 {[%clk
0:02:53.8]} 14. Bd3 {[%clk 0:02:26.4]} 14... Nf6 {[%clk 0:02:42.7]} 15. Qc4
{[%clk 0:02:19.6]} 15... d5 {[%clk 0:02:39.4]} 16. Qc2 {[%clk 0:02:17]} 16...
Nb4 {[%clk 0:02:36.8]} 17. Qe2 {[%clk 0:02:14.5]} 17... Nxd3 {[%clk 0:02:36.6]}
18. Qxd3 {[%clk 0:02:14.8]} 18... Bh3 {[%clk 0:02:33.8]} 19. Nh4 {[%clk
0:02:08.9]} 19... Rg4 {[%clk 0:02:28]} 20. Kh1 {[%clk 0:01:17.8]} 20... Rxh4
{[%clk 0:02:23]} 21. gxh3 {[%clk 0:01:17.8]} 21... Qd7 {[%clk 0:02:22.3]} 22. e4
{[%clk 0:00:46.7]} 22... Rxh3 {[%clk 0:02:19.7]} 23. f3 {[%clk 0:00:45.1]} 23...
Qc7 {[%clk 0:02:12.9]} 24. Rf2 {[%clk 0:00:38.7]} 24... Ng4 {[%clk 0:02:01]} 25.
Rg2 {[%clk 0:00:13.6]} 25... Rxh2+ {[%clk 0:01:59]} 26. Kg1 {[%clk 0:00:13.5]}
26... Rxg2+ {[%clk 0:01:59.4]} 27. Kxg2 {[%clk 0:00:13.6]} 27... Qh2+ {[%clk
0:02:00.2]} 28. Kf1 {[%clk 0:00:13.9]} 28... Qf2# {[%clk 0:02:01.1]} 0-1

[Event "*** Titled Tuesday Blitz"]
[Site "Chess.com"]
[Date "2020.04.21"]
[Round "6"]
[White "mbachez"]
[Black "erlesfar"]
[Result "1-0"]
[WhiteElo "2435"]
[BlackElo "2261"]
[TimeControl "180+1"]
[EndTime "11:06:31 PDT"]
[Termination "mbachez won by resignation"]

1. e4 {[%clk 0:03:00.9]} 1... d5 {[%clk 0:02:57.4]} 2. exd5 {[%clk 0:03:00.4]}
2... Qxd5 {[%clk 0:02:55.9]} 3. Nc3 {[%clk 0:02:59.5]} 3... Qa5 {[%clk
0:02:55.2]} 4. g3 {[%clk 0:02:59.7]} 4... c6 {[%clk 0:02:53.3]} 5. Bg2 {[%clk
0:02:59.8]} 5... Nf6 {[%clk 0:02:51.1]} 6. d3 {[%clk 0:03:00.1]} 6... Bg4 {[%clk
0:02:49.3]} 7. Nf3 {[%clk 0:03:00.1]} 7... Nbd7 {[%clk 0:02:47.8]} 8. h3 {[%clk
0:03:00.3]} 8... Bh5 {[%clk 0:02:46.7]} 9. Bd2 {[%clk 0:03:00.5]} 9... Qc7
{[%clk 0:02:45.6]} 10. Qe2 {[%clk 0:03:00.7]} 10... e6 {[%clk 0:02:44.9]} 11.
O-O-O {[%clk 0:02:56.6]} 11... O-O-O {[%clk 0:02:35.3]} 12. Kb1 {[%clk
0:02:55.4]} 12... Nd5 {[%clk 0:02:28]} 13. Nxd5 {[%clk 0:02:48.8]} 13... exd5
{[%clk 0:02:26.4]} 14. g4 {[%clk 0:02:47.8]} 14... Bg6 {[%clk 0:02:25.3]} 15. h4
{[%clk 0:02:43.8]} 15... h5 {[%clk 0:02:23.7]} 16. g5 {[%clk 0:02:43.8]} 16...
Bd6 {[%clk 0:02:21.7]} 17. Bh3 {[%clk 0:02:43.8]} 17... Kb8 {[%clk 0:02:19.6]}
18. Bc3 {[%clk 0:02:39.2]} 18... Rhe8 {[%clk 0:02:18]} 19. Qd2 {[%clk
0:02:37.4]} 19... Bf4 {[%clk 0:02:15.5]} 20. Ba5 {[%clk 0:02:33.2]} 20... b6
{[%clk 0:02:08.5]} 21. Qb4 {[%clk 0:02:30.2]} 21... Ka8 {[%clk 0:02:00.4]} 22.
Bxd7 {[%clk 0:02:29.8]} 22... Rxd7 {[%clk 0:01:57.3]} 23. Nd4 {[%clk 0:02:29.4]}
23... bxa5 {[%clk 0:01:54.4]} 24. Qa4 {[%clk 0:02:29.3]} 24... Rc8 {[%clk
0:01:51.5]} 25. Rhe1 {[%clk 0:02:29.2]} 25... Bd6 {[%clk 0:01:50]} 26. Nb3
{[%clk 0:02:28.2]} 26... Bb4 {[%clk 0:01:46.9]} 27. c3 {[%clk 0:02:27.9]} 27...
Bd6 {[%clk 0:01:45.6]} 28. Ka1 {[%clk 0:02:28.2]} 28... Re7 {[%clk 0:01:43.9]}
29. Nxa5 {[%clk 0:02:27.4]} 29... Rxe1 {[%clk 0:01:42.5]} 30. Rxe1 {[%clk
0:02:27.6]} 30... Qd7 {[%clk 0:01:39.9]} 31. Qd4 {[%clk 0:02:23.7]} 31... Re8
{[%clk 0:01:35.7]} 32. Rxe8+ {[%clk 0:02:21.2]} 32... Qxe8 {[%clk 0:01:35]} 33.
a3 {[%clk 0:02:21.5]} 33... Qe5 {[%clk 0:01:30.8]} 34. Qa4 {[%clk 0:02:16.4]}
34... Qe8 {[%clk 0:01:24.4]} 35. Nxc6 {[%clk 0:02:15.8]} 35... Qd7 {[%clk
0:01:23.7]} 36. Qb5 {[%clk 0:02:12.5]} 36... Bxd3 {[%clk 0:01:20.1]} 37. Qxd5
{[%clk 0:02:11.8]} 37... Qe6 {[%clk 0:00:40.8]} 38. Qxd3 {[%clk 0:02:07.5]} 1-0

[Event "*** Titled Tuesday Blitz"]
[Site "Chess.com"]
[Date "2020.04.21"]
[Round "6"]
[White "TastyFrenchFries"]
[Black "ReyesBraulio"]
[Result "1-0"]
[WhiteElo "2386"]
[BlackElo "2146"]
[TimeControl "180+1"]
[EndTime "11:06:32 PDT"]
[Termination "TastyFrenchFries won by resignation"]

1. e4 {[%clk 0:03:00.9]} 1... d5 {[%clk 0:03:00]} 2. exd5 {[%clk 0:02:59.4]}
2... Qxd5 {[%clk 0:03:00.5]} 3. Qf3 {[%clk 0:03:00.3]} 3... Qxf3 {[%clk
0:02:59.9]} 4. Nxf3 {[%clk 0:03:01.2]} 4... c6 {[%clk 0:03:00.2]} 5. Be2 {[%clk
0:03:01.6]} 5... Nf6 {[%clk 0:03:00.1]} 6. O-O {[%clk 0:03:02.5]} 6... Bf5
{[%clk 0:03:00.2]} 7. d3 {[%clk 0:03:02.7]} 7... e6 {[%clk 0:03:00.5]} 8. h3
{[%clk 0:03:01.4]} 8... Bd6 {[%clk 0:02:59.8]} 9. Nbd2 {[%clk 0:02:57.7]} 9...
Nbd7 {[%clk 0:02:59.7]} 10. a4 {[%clk 0:02:57.5]} 10... O-O-O {[%clk 0:02:59]}
11. Nc4 {[%clk 0:02:57.5]} 11... Bc7 {[%clk 0:02:58.1]} 12. b4 {[%clk
0:02:57.8]} 12... Nd5 {[%clk 0:02:55.5]} 13. Bd2 {[%clk 0:02:56.6]} 13... h5
{[%clk 0:02:53]} 14. b5 {[%clk 0:02:50.6]} 14... c5 {[%clk 0:02:46.2]} 15. a5
{[%clk 0:02:50.2]} 15... Bb8 {[%clk 0:02:41.7]} 16. Ng5 {[%clk 0:02:29.1]} 16...
Rdf8 {[%clk 0:02:28.3]} 17. Ne4 {[%clk 0:02:28.5]} 17... Bxe4 {[%clk 0:02:25]}
18. dxe4 {[%clk 0:02:29.4]} 18... Nf4 {[%clk 0:02:18]} 19. Bf3 {[%clk
0:02:21.1]} 19... g5 {[%clk 0:02:08.1]} 20. a6 {[%clk 0:02:17.4]} 20... b6
{[%clk 0:02:06.1]} 21. Rad1 {[%clk 0:02:13]} 21... Ne5 {[%clk 0:02:06]} 22. Bxf4
{[%clk 0:02:06]} 22... Nxf3+ {[%clk 0:02:01.5]} 23. gxf3 {[%clk 0:02:05.9]}
23... Bxf4 {[%clk 0:01:53]} 24. e5 {[%clk 0:01:53.2]} 24... f6 {[%clk
0:01:48.3]} 25. Rd6 {[%clk 0:01:48.2]} 25... Bxe5 {[%clk 0:01:38.3]} 26. Nxe5
{[%clk 0:01:46.7]} 26... fxe5 {[%clk 0:01:38.6]} 27. Kg2 {[%clk 0:01:45.1]}
27... Rf6 {[%clk 0:01:28.8]} 28. Rfd1 {[%clk 0:01:40.2]} 28... Rh7 {[%clk
0:01:25.1]} 29. Rd8+ {[%clk 0:01:36.2]} 29... Kc7 {[%clk 0:01:25.2]} 30. Ra8
{[%clk 0:01:36.5]} 30... Rff7 {[%clk 0:01:16.3]} 31. Rxa7+ {[%clk 0:01:32.1]}
31... Kc8 {[%clk 0:01:16.5]} 32. Ra8+ {[%clk 0:01:31.6]} 32... Kc7 {[%clk
0:01:16.7]} 33. Rdd8 {[%clk 0:01:29.9]} 33... Rd7 {[%clk 0:01:13.4]} 34. Rac8+
{[%clk 0:01:28.2]} 34... Kd6 {[%clk 0:01:11.9]} 35. Rc6+ {[%clk 0:01:24.9]}
35... Kd5 {[%clk 0:01:10.6]} 36. Rxd7+ {[%clk 0:01:23.5]} 36... Rxd7 {[%clk
0:01:09.6]} 37. Rxb6 {[%clk 0:01:23.2]} 1-0

[Event "*** Titled Tuesday Blitz"]
[Site "Chess.com"]
[Date "2020.04.21"]
[Round "6"]
[White "dennisodessa"]
[Black "Yanidze"]
[Result "1-0"]
[WhiteElo "2307"]
[BlackElo "2435"]
[TimeControl "180+1"]
[EndTime "11:06:49 PDT"]
[Termination "dennisodessa won by resignation"]

1. d4 {[%clk 0:03:00.9]} 1... g6 {[%clk 0:02:59.7]} 2. c4 {[%clk 0:03:00.1]}
2... Bg7 {[%clk 0:02:59.3]} 3. e4 {[%clk 0:02:56.9]} 3... c5 {[%clk 0:02:59.4]}
4. d5 {[%clk 0:02:55.5]} 4... d6 {[%clk 0:02:59.2]} 5. Bd3 {[%clk 0:02:52.6]}
5... Nf6 {[%clk 0:02:58.8]} 6. Nc3 {[%clk 0:02:52.4]} 6... O-O {[%clk
0:02:58.6]} 7. h3 {[%clk 0:02:52.6]} 7... e6 {[%clk 0:02:57.1]} 8. Nf3 {[%clk
0:02:52.3]} 8... exd5 {[%clk 0:02:57.7]} 9. cxd5 {[%clk 0:02:53]} 9... c4 {[%clk
0:02:54.5]} 10. Bxc4 {[%clk 0:02:46.1]} 10... Nbd7 {[%clk 0:02:54.1]} 11. O-O
{[%clk 0:02:45.7]} 11... Nc5 {[%clk 0:02:54.1]} 12. Re1 {[%clk 0:02:40.6]} 12...
Re8 {[%clk 0:02:54.7]} 13. Bb5 {[%clk 0:01:51.3]} 13... Bd7 {[%clk 0:02:48.9]}
14. Bxd7 {[%clk 0:01:51]} 14... Qxd7 {[%clk 0:02:49.8]} 15. e5 {[%clk
0:01:50.5]} 15... dxe5 {[%clk 0:02:40.4]} 16. Nxe5 {[%clk 0:01:51.4]} 16... Qd8
{[%clk 0:02:41]} 17. Bf4 {[%clk 0:01:43.3]} 17... Nfd7 {[%clk 0:02:38.3]} 18.
Nxd7 {[%clk 0:01:41.3]} 18... Qxd7 {[%clk 0:02:39.2]} 19. Qd2 {[%clk 0:01:36.5]}
19... Rac8 {[%clk 0:02:22.6]} 20. Rad1 {[%clk 0:01:14.4]} 20... a6 {[%clk
0:02:18.4]} 21. d6 {[%clk 0:01:07.5]} 21... Ne6 {[%clk 0:02:13]} 22. Bg3 {[%clk
0:01:03.7]} 22... Nd4 {[%clk 0:01:56.7]} 23. Nd5 {[%clk 0:01:02.1]} 23... Rc2
{[%clk 0:01:52.8]} 24. Rxe8+ {[%clk 0:00:37.9]} 24... Qxe8 {[%clk 0:01:53.7]}
25. Ne7+ {[%clk 0:00:38]} 25... Kh8 {[%clk 0:01:46.8]} 26. Qxc2 {[%clk
0:00:33.1]} 1-0

[Event "*** Titled Tuesday Blitz"]
[Site "Chess.com"]
[Date "2020.04.21"]
[Round "6"]
[White "Pultis"]
[Black "amiralfio"]
[Result "1-0"]
[WhiteElo "2735"]
[BlackElo "2529"]
[TimeControl "180+1"]
[EndTime "11:06:52 PDT"]
[Termination "Pultis won on time"]

1. d4 {[%clk 0:03:00.9]} 1... d5 {[%clk 0:02:55.5]} 2. c4 {[%clk 0:03:01]} 2...
c6 {[%clk 0:02:55.9]} 3. Nf3 {[%clk 0:03:01.1]} 3... Nf6 {[%clk 0:02:47.5]} 4.
Nc3 {[%clk 0:03:01.4]} 4... e6 {[%clk 0:02:47.7]} 5. e3 {[%clk 0:03:01]} 5...
Nbd7 {[%clk 0:02:46.7]} 6. Qc2 {[%clk 0:03:01.6]} 6... Bd6 {[%clk 0:02:43.9]} 7.
b3 {[%clk 0:03:02.2]} 7... b6 {[%clk 0:02:41.3]} 8. Be2 {[%clk 0:03:02]} 8...
O-O {[%clk 0:02:39.9]} 9. O-O {[%clk 0:03:02.1]} 9... Bb7 {[%clk 0:02:40.1]} 10.
Bb2 {[%clk 0:03:02.6]} 10... Rc8 {[%clk 0:02:39.1]} 11. Rad1 {[%clk 0:03:01.3]}
11... Qe7 {[%clk 0:02:39.3]} 12. Qb1 {[%clk 0:03:00.7]} 12... Rfd8 {[%clk
0:02:37.8]} 13. Rfe1 {[%clk 0:02:57.6]} 13... a6 {[%clk 0:02:36.9]} 14. Bd3
{[%clk 0:02:56.2]} 14... e5 {[%clk 0:02:26.2]} 15. e4 {[%clk 0:02:54.5]} 15...
dxc4 {[%clk 0:02:18.6]} 16. Bxc4 {[%clk 0:02:49.6]} 16... b5 {[%clk 0:02:16.7]}
17. Bf1 {[%clk 0:02:48.1]} 17... g6 {[%clk 0:02:02.7]} 18. Qa1 {[%clk
0:02:35.4]} 18... c5 {[%clk 0:01:35]} 19. dxe5 {[%clk 0:02:21.2]} 19... Nxe5
{[%clk 0:01:27.9]} 20. Nxe5 {[%clk 0:02:20.8]} 20... Qxe5 {[%clk 0:00:58.9]} 21.
g3 {[%clk 0:02:19.9]} 21... Ng4 {[%clk 0:00:46.1]} 22. Nd5 {[%clk 0:02:13.1]}
22... Qh5 {[%clk 0:00:39.8]} 23. h3 {[%clk 0:02:12.2]} 23... Bxd5 {[%clk
0:00:07.8]} 24. hxg4 {[%clk 0:02:10.1]} 24... Qxg4 {[%clk 0:00:07]} 25. exd5
{[%clk 0:02:07.5]} 25... c4 {[%clk 0:00:02.9]} 26. bxc4 {[%clk 0:02:07.2]} 26...
bxc4 {[%clk 0:00:02.9]} 27. Be5 {[%clk 0:02:07.6]} 27... Bc5 {[%clk 0:00:02.8]}
28. Kg2 {[%clk 0:02:00.6]} 28... Re8 {[%clk 0:00:03.1]} 29. d6 {[%clk
0:01:56.2]} 1-0

[Event "*** Titled Tuesday Blitz"]
[Site "Chess.com"]
[Date "2020.04.21"]
[Round "6"]
[White "crazy_but_lazy"]
[Black "MisiekZielony"]
[Result "1-0"]
[WhiteElo "2374"]
[BlackElo "2060"]
[TimeControl "180+1"]
[EndTime "11:06:57 PDT"]
[Termination "crazy_but_lazy won by resignation"]

1. d4 {[%clk 0:03:00.9]} 1... d5 {[%clk 0:02:59.4]} 2. c4 {[%clk 0:02:57.3]}
2... c6 {[%clk 0:02:58.6]} 3. cxd5 {[%clk 0:02:57.2]} 3... cxd5 {[%clk
0:02:58.4]} 4. Bf4 {[%clk 0:02:57.7]} 4... Nc6 {[%clk 0:02:58]} 5. e3 {[%clk
0:02:56.6]} 5... Nf6 {[%clk 0:02:57.7]} 6. Nc3 {[%clk 0:02:55.9]} 6... e6 {[%clk
0:02:57.6]} 7. Bd3 {[%clk 0:02:56]} 7... Be7 {[%clk 0:02:55.4]} 8. Nge2 {[%clk
0:02:52.4]} 8... O-O {[%clk 0:02:54.9]} 9. O-O {[%clk 0:02:52.5]} 9... Nh5
{[%clk 0:02:51.1]} 10. Rc1 {[%clk 0:02:51.7]} 10... Nxf4 {[%clk 0:02:49]} 11.
Nxf4 {[%clk 0:02:52.6]} 11... g6 {[%clk 0:02:36.5]} 12. Na4 {[%clk 0:02:45.9]}
12... Bd7 {[%clk 0:02:19]} 13. Nc5 {[%clk 0:02:42.7]} 13... Bxc5 {[%clk
0:02:18]} 14. Rxc5 {[%clk 0:02:43.6]} 14... Qb6 {[%clk 0:02:04]} 15. b3 {[%clk
0:02:38.2]} 15... Rfc8 {[%clk 0:01:54.7]} 16. Qd2 {[%clk 0:02:27.6]} 16... Qb4
{[%clk 0:01:28.3]} 17. Qe2 {[%clk 0:01:57.5]} 17... Qa3 {[%clk 0:01:14.7]} 18.
Rfc1 {[%clk 0:01:43.7]} 18... b6 {[%clk 0:01:13.4]} 19. R5c3 {[%clk 0:01:21.9]}
19... Nb4 {[%clk 0:01:12.7]} 20. Rxc8+ {[%clk 0:01:14.4]} 20... Rxc8 {[%clk
0:01:12.5]} 21. Rxc8+ {[%clk 0:01:15.3]} 21... Bxc8 {[%clk 0:01:12.3]} 22. Bb1
{[%clk 0:01:06]} 22... Qb2 {[%clk 0:00:57.6]} 23. Qxb2 {[%clk 0:00:56.7]} 1-0

[Event "*** Titled Tuesday Blitz"]
[Site "Chess.com"]
[Date "2020.04.21"]
[Round "6"]
[White "ama18"]
[Black "Andrei_Belozerov"]
[Result "1-0"]
[WhiteElo "2485"]
[BlackElo "2590"]
[TimeControl "180+1"]
[EndTime "11:07:00 PDT"]
[Termination "ama18 won by resignation"]

1. e4 {[%clk 0:03:00.9]} 1... c5 {[%clk 0:02:39.6]} 2. Nf3 {[%clk 0:03:00.2]}
2... d6 {[%clk 0:02:40.1]} 3. d4 {[%clk 0:02:59.7]} 3... cxd4 {[%clk 0:02:40.3]}
4. Nxd4 {[%clk 0:03:00.6]} 4... Nf6 {[%clk 0:02:40.1]} 5. Nc3 {[%clk 0:03:01.2]}
5... a6 {[%clk 0:02:40.6]} 6. h3 {[%clk 0:03:01.3]} 6... e5 {[%clk 0:02:40.1]}
7. Nde2 {[%clk 0:03:00.8]} 7... h5 {[%clk 0:02:39.1]} 8. Bg5 {[%clk 0:03:00.3]}
8... Be6 {[%clk 0:02:26.1]} 9. Bxf6 {[%clk 0:02:56.8]} 9... Qxf6 {[%clk
0:02:25.1]} 10. Nd5 {[%clk 0:02:57.7]} 10... Qd8 {[%clk 0:02:25.1]} 11. Qd3
{[%clk 0:02:57.5]} 11... Nc6 {[%clk 0:02:12.8]} 12. O-O-O {[%clk 0:02:54]} 12...
Rc8 {[%clk 0:02:12.8]} 13. Nec3 {[%clk 0:02:51.4]} 13... Nd4 {[%clk 0:02:10.1]}
14. Kb1 {[%clk 0:02:42.9]} 14... g6 {[%clk 0:02:03.3]} 15. f4 {[%clk 0:02:39.5]}
15... Bg7 {[%clk 0:02:02.4]} 16. Rg1 {[%clk 0:02:24.6]} 16... O-O {[%clk
0:01:53.3]} 17. g4 {[%clk 0:02:24]} 17... hxg4 {[%clk 0:01:51.4]} 18. hxg4
{[%clk 0:02:24.9]} 18... exf4 {[%clk 0:01:51.4]} 19. Nxf4 {[%clk 0:02:19.9]}
19... Qb6 {[%clk 0:01:45.4]} 20. Ncd5 {[%clk 0:02:14.7]} 20... Bxd5 {[%clk
0:01:41.2]} 21. Nxd5 {[%clk 0:02:15.6]} 21... Qc5 {[%clk 0:01:39.5]} 22. c3
{[%clk 0:02:13.6]} 22... Nc6 {[%clk 0:01:36.4]} 23. Rh1 {[%clk 0:02:00.6]} 23...
Rfe8 {[%clk 0:01:34.1]} 24. g5 {[%clk 0:01:57.8]} 24... Re5 {[%clk 0:01:06.8]}
25. Qh3 {[%clk 0:01:54]} 25... Ne7 {[%clk 0:00:44.9]} 26. Nf6+ {[%clk
0:01:36.8]} 26... Bxf6 {[%clk 0:00:44]} 27. Qh7+ {[%clk 0:01:20.1]} 27... Kf8
{[%clk 0:00:43.3]} 28. gxf6 {[%clk 0:01:19.9]} 1-0